[Event "Championnat d'Europe de Blitz"]
[Date "2024.12.09"]
[White "Mastrovasilis, Dimitrios"]
[Black "Aizenberg, Benny"]
[WhiteElo "2537"]
[BlackElo "2425"]
[Round "11.28"]
[Result "1-0"]
[TimeControl "180+2"]

1. e4 {[%emt 00:00:03] [%clk 00:03:02]} c5 {[%clk 00:03:03]} 2. Nf3 {[%clk
00:03:03]} e6 {[%emt 00:00:02] [%clk 00:03:04]} 3. c4 {[%emt 00:00:01] [%clk
00:03:03]} Nc6 {[%emt 00:00:04] [%clk 00:03:02]} 4. d4 {[%clk 00:03:04]} cxd4
{[%emt 00:00:02] [%clk 00:03:03]} 5. Nxd4 {[%emt 00:00:01] [%clk 00:03:04]} Nf6
{[%emt 00:00:01] [%clk 00:03:04]} 6. Nc3 {[%emt 00:00:02] [%clk 00:03:04]} Bb4
{[%emt 00:00:03] [%clk 00:03:03]} 7. Nxc6 {[%emt 00:00:01] [%clk 00:03:05]} bxc6
{[%emt 00:00:02] [%clk 00:03:03]} 8. Bd3 {[%emt 00:00:01] [%clk 00:03:05]} e5
{[%emt 00:00:04] [%clk 00:03:02]} 9. O-O {[%emt 00:00:03] [%clk 00:03:04]} O-O
{[%emt 00:00:02] [%clk 00:03:01]} 10. Be3 {[%emt 00:00:13] [%clk 00:02:53]} Bxc3
{[%emt 00:00:14] [%clk 00:02:50]} 11. bxc3 {[%emt 00:00:01] [%clk 00:02:53]} d6
{[%emt 00:00:02] [%clk 00:02:50]} 12. Qa4 {[%emt 00:00:40] [%clk 00:02:15]} Qc7
{[%emt 00:00:07] [%clk 00:02:44]} 13. Rab1 {[%emt 00:00:05] [%clk 00:02:12]} Be6
{[%emt 00:00:11] [%clk 00:02:35]} 14. Rb3 {[%emt 00:00:25] [%clk 00:01:50]} Nd7
{[%emt 00:00:04] [%clk 00:02:33]} 15. Rfb1 {[%emt 00:00:04] [%clk 00:01:48]} Nb6
{[%emt 00:00:08] [%clk 00:02:27]} 16. Qa5 {[%emt 00:00:02] [%clk 00:01:48]} c5
{[%emt 00:00:10] [%clk 00:02:19]} 17. h3 {[%emt 00:00:10] [%clk 00:01:40]} Qc6
{[%emt 00:00:06] [%clk 00:02:15]} 18. Qa6 {[%emt 00:00:06] [%clk 00:01:36]} Qa4
{[%emt 00:00:37] [%clk 00:01:40]} 19. Ra3 {[%emt 00:00:33] [%clk 00:01:06]} Qxa6
{[%emt 00:00:32] [%clk 00:01:10]} 20. Rxa6 {[%emt 00:00:01] [%clk 00:01:07]} f6
{[%emt 00:00:28] [%clk 00:00:44]} 21. a4 {[%emt 00:00:05] [%clk 00:01:04]} Bc8
{[%emt 00:00:03]} 22. Rbxb6 {[%clk 00:01:04]} Bxa6 {[%emt 00:00:09] [%clk
00:00:36]} 23. Rxa6 {[%emt 00:00:01] [%clk 00:01:05]} Rfd8 {[%clk 00:00:37]} 24.
Be2 {[%emt 00:00:09] [%clk 00:00:58]} g6 {[%emt 00:00:11] [%clk 00:00:28]} 25.
Kf1 {[%emt 00:00:09] [%clk 00:00:50]} Rab8 {[%emt 00:00:19] [%clk 00:00:12]} 26.
g3 {[%emt 00:00:05] [%clk 00:00:47]} Rb7 {[%emt 00:00:01] [%clk 00:00:13]} 27.
Rc6 {[%emt 00:00:05] [%clk 00:00:43]} Kf7 {[%emt 00:00:01] [%clk 00:00:14]} 28.
h4 {[%emt 00:00:05] [%clk 00:00:41]} Ke7 {[%emt 00:00:02] [%clk 00:00:14]} 29.
Bg4 {[%emt 00:00:02] [%clk 00:00:40]} Rf8 {[%emt 00:00:05] [%clk 00:00:11]} 30.
Bc8 {[%emt 00:00:14] [%clk 00:00:28]} Rb8 {[%emt 00:00:07] [%clk 00:00:06]} 31.
Ba6 {[%emt 00:00:01] [%clk 00:00:29]} Kd7 {[%emt 00:00:04] [%clk 00:00:05]} 32.
Bb5 {[%emt 00:00:01] [%clk 00:00:30]} Ke6 {[%emt 00:00:07]} 33. Rc7 {[%emt
00:00:02] [%clk 00:00:27]} Rf7 {[%emt 00:00:02] [%clk 00:00:03]} 34. Rxf7 {[%emt
00:00:04] [%clk 00:00:25]} Kxf7 {[%clk 00:00:05]} 35. a5 {[%emt 00:00:02] [%clk
00:00:25]} Ke6 {[%emt 00:00:02] [%clk 00:00:05]} 36. a6 {[%emt 00:00:01] [%clk
00:00:26]} Ke7 {[%emt 00:00:02] [%clk 00:00:05]} 37. Kg2 {[%emt 00:00:01] [%clk
00:00:27]} h5 {[%emt 00:00:02] [%clk 00:00:04]} 38. f3 {[%emt 00:00:03] [%clk
00:00:27]} Rh8 {[%emt 00:00:01] [%clk 00:00:05]} 39. Kh3 {[%emt 00:00:02] [%clk
00:00:27]} Kf7 {[%emt 00:00:02] [%clk 00:00:04]} 40. g4 {[%emt 00:00:03] [%clk
00:00:27]} Ke7 {[%emt 00:00:02] [%clk 00:00:04]} 41. Bc6 {[%emt 00:00:02] [%clk
00:00:27]} Rb8 {[%emt 00:00:02] [%clk 00:00:04]} 42. Bb7 {[%emt 00:00:01] [%clk
00:00:28]} Rh8 {[%emt 00:00:02] [%clk 00:00:05]} 43. f4 {[%emt 00:00:02] [%clk
00:00:28]} Rg8 {[%emt 00:00:03] [%clk 00:00:04]} 44. fxe5 {[%emt 00:00:12] [%clk
00:00:18]} fxe5 {[%emt 00:00:02] [%clk 00:00:04]} 45. Kg3 {[%emt 00:00:01] [%clk
00:00:19]} Rf8 {[%emt 00:00:03]} 46. Bg5+ {[%clk 00:00:18]} Kd7 {[%emt 00:00:01]
[%clk 00:00:06]} 47. Bd5 {[%emt 00:00:01] [%clk 00:00:19]} Rf1 {[%emt 00:00:01]
[%clk 00:00:06]} 48. Kg2 {[%emt 00:00:04] [%clk 00:00:17]} Rf8 {[%emt 00:00:03]
[%clk 00:00:05]} 49. Kg3 {[%emt 00:00:01] [%clk 00:00:18]} Rf1 {[%emt 00:00:01]
[%clk 00:00:06]} 50. Bg8 {[%emt 00:00:03] [%clk 00:00:17]} Rg1+ {[%emt 00:00:01]
[%clk 00:00:07]} 51. Kf3 {[%emt 00:00:01] [%clk 00:00:18]} hxg4+ {[%emt
00:00:03] [%clk 00:00:06]} 52. Kf2 {[%clk 00:00:19]} Rh1 {[%emt 00:00:02] [%clk
00:00:05]} 53. Bh7 {[%emt 00:00:03] [%clk 00:00:18]} Rh3 {[%emt 00:00:02] [%clk
00:00:05]} 54. Bxg6 {[%emt 00:00:01] [%clk 00:00:18]} Rxc3 {[%emt 00:00:02]
[%clk 00:00:05]} 55. h5 {[%emt 00:00:01] [%clk 00:00:19]} Rxc4 {[%emt 00:00:03]
[%clk 00:00:04]} 56. h6 {[%emt 00:00:01] [%clk 00:00:19]} Rc3 {[%emt 00:00:03]
[%clk 00:00:04]} 57. h7 {[%emt 00:00:07] [%clk 00:00:14]} Rh3 {[%emt 00:00:02]
[%clk 00:00:04]} 58. Bf5+ {[%emt 00:00:03] [%clk 00:00:13]} Kc6 {[%emt 00:00:02]
[%clk 00:00:04]} 59. Bf6 {[%emt 00:00:01] [%clk 00:00:14]} c4 {[%emt 00:00:03]
[%clk 00:00:04]} 60. h8=Q {[%emt 00:00:03] [%clk 00:00:12]} Rxh8 {[%emt
00:00:01] [%clk 00:00:04]} 61. Bxh8 {[%clk 00:00:13]} c3 {[%emt 00:00:01] [%clk
00:00:06]} 62. Ke2 {[%emt 00:00:02] [%clk 00:00:13]} g3 {[%emt 00:00:01] [%clk
00:00:07]} 63. Bh3 {[%clk 00:00:14]} Kb5 {[%emt 00:00:03] [%clk 00:00:06]} 64.
Kd3 {[%clk 00:00:15]} Kb4 {[%clk 00:00:08]} 65. Kc2 {[%clk 00:00:16]} Kc4 {[%clk
00:00:09]} 66. Bf6 {[%emt 00:00:03] [%clk 00:00:14]} Kd4 {[%emt 00:00:01] [%clk
00:00:11]} 67. Bg2 {[%clk 00:00:15]} Ke3 {[%emt 00:00:01] [%clk 00:00:12]} 68.
Be7 {[%emt 00:00:07] [%clk 00:00:10]} Kf2 {[%emt 00:00:02] [%clk 00:00:12]} 69.
Bh3 {[%clk 00:00:12]} Kf3 {[%emt 00:00:08] [%clk 00:00:07]} 70. Bxd6 {[%emt
00:00:01] [%clk 00:00:12]} Kxe4 {[%clk 00:00:08]} 71. Bb8 {[%emt 00:00:03] [%clk
00:00:11]} Kd5 {[%emt 00:00:03] [%clk 00:00:07]} 72. Bxa7 {[%emt 00:00:01] [%clk
00:00:12]} Kc6 {[%clk 00:00:09]} 73. Bg1 {[%emt 00:00:03] [%clk 00:00:11]} Kc7
{[%emt 00:00:04] [%clk 00:00:07]} 74. Bg2 {[%emt 00:00:01] [%clk 00:00:12]} 1-0

[Site "Europe Echecs"]

[Event "Championnat d'Europe de Blitz"]
[Date "2024.12.09"]
[White "Kozul, Zdenko"]
[Black "Narva, Mai"]
[WhiteElo "2519"]
[BlackElo "2413"]
[Round "11.29"]
[Result "1-0"]
[TimeControl "180+2"]

1. d4 {[%emt 00:08:39] [%clk 00:03:03]} Nf6 {[%emt 00:00:04] [%clk 00:03:02]} 2.
c4 {[%clk 00:03:04]} g6 {[%emt 00:00:04] [%clk 00:03:00]} 3. Nc3 {[%emt
00:00:01] [%clk 00:03:05]} Bg7 {[%emt 00:00:01] [%clk 00:03:00]} 4. e4 {[%emt
00:00:02] [%clk 00:03:06]} d6 {[%emt 00:00:01] [%clk 00:03:01]} 5. h3 {[%emt
00:00:02] [%clk 00:03:06]} O-O {[%emt 00:00:02] [%clk 00:03:01]} 6. Be3 {[%clk
00:03:08]} Nc6 {[%emt 00:00:04] [%clk 00:02:58]} 7. d5 {[%emt 00:00:11] [%clk
00:02:58]} Ne5 {[%emt 00:00:02] [%clk 00:02:59]} 8. Qd2 {[%clk 00:03:00]} c6
{[%emt 00:00:11] [%clk 00:02:50]} 9. Be2 {[%emt 00:00:16] [%clk 00:02:46]} cxd5
{[%emt 00:00:09] [%clk 00:02:43]} 10. exd5 {[%emt 00:00:09] [%clk 00:02:39]} b6
{[%emt 00:00:43] [%clk 00:02:02]} 11. Nf3 {[%emt 00:00:05] [%clk 00:02:36]}
Nxf3+ {[%emt 00:00:11] [%clk 00:01:52]} 12. Bxf3 {[%emt 00:00:01] [%clk
00:02:37]} Nd7 {[%emt 00:00:11] [%clk 00:01:43]} 13. O-O {[%emt 00:00:06] [%clk
00:02:33]} Ba6 {[%emt 00:00:44] [%clk 00:01:01]} 14. b3 {[%emt 00:00:02] [%clk
00:02:33]} Rc8 {[%emt 00:00:05] [%clk 00:00:57]} 15. Rac1 {[%emt 00:00:07] [%clk
00:02:29]} Nc5 {[%emt 00:00:06] [%clk 00:00:53]} 16. Rfe1 {[%emt 00:00:05] [%clk
00:02:26]} Qc7 {[%emt 00:00:26] [%clk 00:00:29]} 17. Bd4 {[%emt 00:00:07] [%clk
00:02:21]} Bxd4 {[%emt 00:00:09] [%clk 00:00:22]} 18. Qxd4 {[%clk 00:02:21]}
Rfe8 {[%emt 00:00:04] [%clk 00:00:21]} 19. Re3 {[%emt 00:00:02] [%clk 00:02:21]}
Nd7 {[%emt 00:00:03] [%clk 00:00:21]} 20. Rce1 {[%emt 00:00:18] [%clk 00:02:05]}
Nf6 {[%emt 00:00:12] [%clk 00:00:11]} 21. g4 {[%emt 00:00:16] [%clk 00:01:50]}
h6 {[%emt 00:00:07] [%clk 00:00:07]} 22. h4 {[%emt 00:00:02] [%clk 00:01:50]}
Kh7 {[%emt 00:00:05] [%clk 00:00:04]} 23. g5 {[%emt 00:00:05] [%clk 00:01:46]}
Ng8 {[%emt 00:00:01] [%clk 00:00:04]} 24. Qf4 {[%emt 00:00:13] [%clk 00:01:36]}
Kg7 {[%emt 00:00:02] [%clk 00:00:05]} 25. h5 {[%emt 00:00:19] [%clk 00:01:18]}
hxg5 {[%emt 00:00:02] [%clk 00:00:05]} 26. Qxg5 {[%emt 00:00:01] [%clk
00:01:18]} Nf6 {[%emt 00:00:02] [%clk 00:00:06]} 27. hxg6 {[%emt 00:00:07] [%clk
00:01:13]} fxg6 {[%emt 00:00:01] [%clk 00:00:07]} 28. Ne4 {[%emt 00:00:03] [%clk
00:01:12]} Nxe4 {[%emt 00:00:05] [%clk 00:00:04]} 29. Bxe4 {[%emt 00:00:01]
[%clk 00:01:12]} Rg8 {[%emt 00:00:02] [%clk 00:00:04]} 30. Rg3 {[%emt 00:00:06]
[%clk 00:01:08]} Kf8 {[%emt 00:00:04] [%clk 00:00:03]} 31. Bxg6 {[%emt 00:00:03]
[%clk 00:01:06]} e5 {[%emt 00:00:02] [%clk 00:00:03]} 32. Qf6+ {[%emt 00:00:02]
[%clk 00:01:06]} 1-0

[Site "Europe Echecs"]

[Event "Championnat d'Europe de Blitz"]
[Date "2024.12.09"]
[White "Kalezic, Blazo"]
[Black "Zhukovskyi, Myhaylo"]
[WhiteElo "2382"]
[BlackElo "2189"]
[Round "11.30"]
[Result "1-0"]
[TimeControl "180+2"]

1. e4 {[%clk 00:03:01]} c5 {[%emt 00:00:02] [%clk 00:03:03]} 2. Nf3 {[%emt
00:00:01] [%clk 00:03:02]} g6 {[%emt 00:00:01] [%clk 00:03:05]} 3. c3 {[%emt
00:00:02] [%clk 00:03:01]} d5 {[%clk 00:03:06]} 4. exd5 {[%emt 00:00:11] [%clk
00:02:53]} Qxd5 {[%emt 00:00:02] [%clk 00:03:06]} 5. d4 {[%emt 00:00:01] [%clk
00:02:53]} Bg7 {[%emt 00:00:01] [%clk 00:03:07]} 6. Be3 {[%emt 00:00:03] [%clk
00:02:51]} cxd4 {[%emt 00:00:02] [%clk 00:03:08]} 7. cxd4 {[%emt 00:00:01] [%clk
00:02:52]} Nf6 {[%emt 00:00:02] [%clk 00:03:09]} 8. Nc3 {[%emt 00:00:02] [%clk
00:02:52]} Qd8 {[%emt 00:00:01] [%clk 00:03:09]} 9. h3 {[%emt 00:00:04] [%clk
00:02:49]} O-O {[%emt 00:00:03] [%clk 00:03:09]} 10. Bc4 {[%emt 00:00:05] [%clk
00:02:45]} Nbd7 {[%emt 00:00:12] [%clk 00:02:59]} 11. O-O {[%emt 00:00:04] [%clk
00:02:43]} Nb6 {[%emt 00:00:02] [%clk 00:03:01]} 12. Bb3 {[%emt 00:00:01] [%clk
00:02:43]} Nbd5 {[%emt 00:00:07] [%clk 00:02:56]} 13. Qd2 {[%emt 00:00:10] [%clk
00:02:35]} Re8 {[%emt 00:00:02] [%clk 00:02:57]} 14. Bh6 {[%emt 00:00:29] [%clk
00:02:07]} Bh8 {[%emt 00:00:01] [%clk 00:02:58]} 15. Rfe1 {[%emt 00:00:05] [%clk
00:02:04]} b6 {[%emt 00:00:24] [%clk 00:02:36]} 16. Ne5 {[%emt 00:00:23] [%clk
00:01:43]} Bb7 {[%emt 00:00:03] [%clk 00:02:36]} 17. Qg5 {[%emt 00:00:11] [%clk
00:01:32]} e6 {[%emt 00:00:31] [%clk 00:02:08]} 18. Ba4 {[%emt 00:00:12] [%clk
00:01:22]} Re7 {[%emt 00:00:10] [%clk 00:02:00]} 19. Qh4 {[%emt 00:00:02] [%clk
00:01:22]} Nxc3 {[%emt 00:00:17] [%clk 00:01:45]} 20. bxc3 {[%emt 00:00:04]
[%clk 00:01:19]} Nd5 {[%emt 00:00:23] [%clk 00:01:24]} 21. Rac1 {[%emt 00:00:10]
[%clk 00:01:11]} Bf6 {[%emt 00:00:08] [%clk 00:01:18]} 22. Qg3 {[%emt 00:00:01]
[%clk 00:01:11]} Rc8 {[%emt 00:00:09] [%clk 00:01:13]} 23. c4 {[%emt 00:00:11]
[%clk 00:01:01]} Nb4 {[%emt 00:00:02] [%clk 00:01:12]} 24. Rcd1 {[%emt 00:00:10]
[%clk 00:00:53]} a6 {[%emt 00:00:23] [%clk 00:00:52]} 25. Bb3 {[%emt 00:00:05]
[%clk 00:00:50]} Nc6 {[%emt 00:00:07] [%clk 00:00:47]} 26. Ng4 {[%emt 00:00:05]
[%clk 00:00:47]} Bg7 {[%emt 00:00:06] [%clk 00:00:43]} 27. Bg5 {[%emt 00:00:01]
[%clk 00:00:47]} Nxd4 {[%emt 00:00:28] [%clk 00:00:18]} 28. Qh4 {[%emt 00:00:06]
[%clk 00:00:42]} Rcc7 {[%emt 00:00:17] [%clk 00:00:03]} 29. Nf6+ {[%emt
00:00:07] [%clk 00:00:37]} Bxf6 {[%emt 00:00:03] [%clk 00:00:03]} 30. Bxf6
{[%emt 00:00:02] [%clk 00:00:36]} Rcd7 {[%emt 00:00:02] [%clk 00:00:03]} 31.
Rxd4 {[%emt 00:00:09] [%clk 00:00:29]} Rxd4 {[%emt 00:00:02] [%clk 00:00:03]}
32. Bxd4 {[%emt 00:00:02] [%clk 00:00:29]} e5 {[%emt 00:00:02] [%clk 00:00:03]}
33. Rxe5 {[%emt 00:00:04] [%clk 00:00:27]} 1-0

[Site "Europe Echecs"]

[Event "Championnat d'Europe de Blitz"]
[Date "2024.12.09"]
[White "Nikolovski, Nikola"]
[Black "Samunenkov, Ihor"]
[WhiteElo "2407"]
[BlackElo "2543"]
[Round "11.31"]
[Result "0-1"]
[TimeControl "180+2"]

1. f4 {[%emt 00:00:02] [%clk 00:03:02]} d5 {[%emt 00:00:03] [%clk 00:03:02]} 2.
Nf3 {[%emt 00:00:01] [%clk 00:03:03]} Nf6 {[%emt 00:00:08] [%clk 00:02:56]} 3.
e3 {[%emt 00:00:01] [%clk 00:03:04]} g6 {[%emt 00:00:01] [%clk 00:02:56]} 4. Be2
{[%emt 00:00:02] [%clk 00:03:04]} Bg7 {[%emt 00:00:01] [%clk 00:02:57]} 5. O-O
{[%emt 00:00:02] [%clk 00:03:04]} O-O {[%emt 00:00:02] [%clk 00:02:57]} 6. d3
{[%emt 00:00:01] [%clk 00:03:05]} c5 {[%emt 00:00:14] [%clk 00:02:45]} 7. Qe1
{[%emt 00:00:01] [%clk 00:03:05]} Nc6 {[%emt 00:00:04] [%clk 00:02:43]} 8. Qh4
{[%emt 00:00:37] [%clk 00:02:30]} Bf5 {[%emt 00:00:15] [%clk 00:02:30]} 9. Nbd2
{[%emt 00:00:18] [%clk 00:02:15]} Re8 {[%emt 00:00:08] [%clk 00:02:24]} 10. Ne5
{[%emt 00:00:39] [%clk 00:01:37]} Nxe5 {[%emt 00:00:20] [%clk 00:02:06]} 11.
fxe5 {[%emt 00:00:01] [%clk 00:01:38]} Nd7 {[%emt 00:00:02] [%clk 00:02:06]} 12.
g4 {[%emt 00:00:30] [%clk 00:01:10]} Be6 {[%emt 00:00:02] [%clk 00:02:06]} 13.
d4 {[%emt 00:00:01] [%clk 00:01:11]} cxd4 {[%emt 00:00:15] [%clk 00:01:53]} 14.
exd4 {[%emt 00:00:02] [%clk 00:01:12]} Qb6 {[%emt 00:00:02] [%clk 00:01:53]} 15.
Qf2 {[%emt 00:00:14] [%clk 00:00:59]} f6 {[%emt 00:00:02] [%clk 00:01:53]} 16.
exf6 {[%emt 00:00:03] [%clk 00:00:59]} Nxf6 {[%emt 00:00:03] [%clk 00:01:52]}
17. c3 {[%emt 00:00:12] [%clk 00:00:49]} Bxg4 {[%emt 00:00:25] [%clk 00:01:28]}
18. Bxg4 {[%emt 00:00:14] [%clk 00:00:37]} Nxg4 {[%emt 00:00:02] [%clk
00:01:28]} 19. Qh4 {[%emt 00:00:01] [%clk 00:00:38]} Ne3 {[%emt 00:00:11] [%clk
00:01:19]} 20. Rf2 {[%emt 00:00:16] [%clk 00:00:24]} e5 {[%emt 00:00:08] [%clk
00:01:13]} 21. dxe5 {[%emt 00:00:16]} Nd1 {[%clk 00:01:06]} 22. Nf3 {[%emt
00:00:06] [%clk 00:00:15]} Rf8 {[%emt 00:00:16] [%clk 00:00:52]} 23. Qd4 {[%emt
00:00:06] [%clk 00:00:11]} Nxf2 {[%emt 00:00:03] [%clk 00:00:51]} 24. Kxf2
{[%emt 00:00:02] [%clk 00:00:11]} Bxe5 {[%emt 00:00:04] [%clk 00:00:49]} 25.
Qxb6 {[%emt 00:00:04] [%clk 00:00:09]} axb6 {[%emt 00:00:02] [%clk 00:00:49]}
26. Kg2 {[%emt 00:00:01] [%clk 00:00:10]} Bg7 {[%emt 00:00:03] [%clk 00:00:48]}
27. Be3 {[%emt 00:00:02] [%clk 00:00:10]} Rae8 {[%emt 00:00:05] [%clk 00:00:45]}
28. Kf2 {[%emt 00:00:07] [%clk 00:00:05]} Rf5 {[%emt 00:00:08] [%clk 00:00:39]}
29. Rg1 {[%emt 00:00:02] [%clk 00:00:06]} b5 {[%emt 00:00:13] [%clk 00:00:28]}
30. a3 {[%emt 00:00:05] [%clk 00:00:03]} Ref8 {[%emt 00:00:05] [%clk 00:00:24]}
31. Rg3 {[%emt 00:00:01] [%clk 00:00:03]} Be5 {[%emt 00:00:02] [%clk 00:00:24]}
32. Rh3 {[%emt 00:00:02] [%clk 00:00:04]} g5 {[%emt 00:00:01] [%clk 00:00:25]}
0-1

[Site "Europe Echecs"]

[Event "Championnat d'Europe de Blitz"]
[Date "2024.12.09"]
[White "Grigoriants, Sergey"]
[Black "Nikolaev, Georgi"]
[WhiteElo "2542"]
[BlackElo "2032"]
[Round "11.32"]
[Result "1-0"]
[TimeControl "180+2"]

1. e4 {[%emt 00:00:03] [%clk 00:03:01]} e5 {[%clk 00:03:04]} 2. Nf3 {[%emt
00:00:01] [%clk 00:03:02]} Nc6 {[%emt 00:00:01] [%clk 00:03:05]} 3. Bb5 {[%emt
00:00:03] [%clk 00:03:01]} a6 {[%clk 00:03:06]} 4. Ba4 {[%clk 00:03:02]} Nf6
{[%clk 00:03:07]} 5. O-O {[%emt 00:00:03] [%clk 00:03:01]} b5 {[%clk 00:03:08]}
6. Bb3 {[%emt 00:00:01] [%clk 00:03:02]} Bc5 {[%clk 00:03:09]} 7. Nc3 {[%emt
00:00:09] [%clk 00:02:55]} d6 {[%emt 00:00:07] [%clk 00:03:04]} 8. Nd5 {[%emt
00:00:04] [%clk 00:02:53]} Rb8 {[%emt 00:00:14] [%clk 00:02:52]} 9. c3 {[%emt
00:00:02] [%clk 00:02:53]} Nxd5 {[%emt 00:00:22] [%clk 00:02:33]} 10. Bxd5
{[%emt 00:00:03] [%clk 00:02:51]} Ne7 {[%emt 00:00:03] [%clk 00:02:33]} 11. Bb3
{[%emt 00:00:05] [%clk 00:02:48]} O-O {[%emt 00:00:20] [%clk 00:02:15]} 12. d4
{[%emt 00:00:09] [%clk 00:02:41]} exd4 {[%emt 00:00:03] [%clk 00:02:15]} 13.
cxd4 {[%emt 00:00:01] [%clk 00:02:41]} Bb6 {[%emt 00:00:02] [%clk 00:02:15]} 14.
h3 {[%emt 00:00:08] [%clk 00:02:35]} c5 {[%emt 00:00:11] [%clk 00:02:07]} 15.
Bf4 {[%emt 00:00:13] [%clk 00:02:23]} c4 {[%emt 00:00:22] [%clk 00:01:47]} 16.
Bc2 {[%emt 00:00:02] [%clk 00:02:23]} Ng6 {[%emt 00:00:01] [%clk 00:01:48]} 17.
Bg3 {[%emt 00:00:09] [%clk 00:02:16]} Bb7 {[%emt 00:00:14] [%clk 00:01:36]} 18.
Re1 {[%emt 00:00:02] [%clk 00:02:16]} Re8 {[%emt 00:00:13] [%clk 00:01:25]} 19.
b3 {[%emt 00:00:10] [%clk 00:02:08]} Rc8 {[%emt 00:00:18] [%clk 00:01:10]} 20.
bxc4 {[%emt 00:00:07] [%clk 00:02:03]} Rxc4 {[%emt 00:00:04] [%clk 00:01:07]}
21. Bb3 {[%emt 00:00:01] [%clk 00:02:03]} Rc7 {[%emt 00:00:07] [%clk 00:01:02]}
22. Qd3 {[%emt 00:00:13] [%clk 00:01:53]} Rce7 {[%emt 00:00:12] [%clk 00:00:53]}
23. Nd2 {[%emt 00:00:21] [%clk 00:01:35]} Ba5 {[%emt 00:00:05] [%clk 00:00:49]}
24. f3 {[%emt 00:00:08] [%clk 00:01:29]} Bb6 {[%emt 00:00:07] [%clk 00:00:44]}
25. Kh2 {[%emt 00:00:03] [%clk 00:01:28]} Rc7 {[%emt 00:00:28] [%clk 00:00:18]}
26. a4 {[%emt 00:00:25] [%clk 00:01:05]} Qf6 {[%emt 00:00:12] [%clk 00:00:09]}
27. axb5 {[%emt 00:00:08] [%clk 00:00:59]} Bxd4 {[%emt 00:00:04] [%clk
00:00:07]} 28. e5 {[%emt 00:00:41] [%clk 00:00:20]} Bxe5 {[%emt 00:00:02] [%clk
00:00:07]} 29. Bxe5 {[%emt 00:00:01] [%clk 00:00:20]} Nxe5 {[%emt 00:00:02]
[%clk 00:00:07]} 30. bxa6 {[%emt 00:00:04] [%clk 00:00:19]} Ba8 {[%emt 00:00:04]
[%clk 00:00:05]} 31. Qb5 {[%emt 00:00:07] [%clk 00:00:14]} Rec8 {[%emt 00:00:03]
[%clk 00:00:04]} 32. Ne4 {[%emt 00:00:05] [%clk 00:00:11]} Qf4+ {[%emt 00:00:03]
[%clk 00:00:03]} 33. Kh1 {[%clk 00:00:12]} Bxe4 {[%emt 00:00:02] [%clk
00:00:04]} 34. Rxe4 {[%emt 00:00:05] [%clk 00:00:09]} Qd2 {[%emt 00:00:02] [%clk
00:00:04]} 35. Qd5 {[%emt 00:00:05] [%clk 00:00:07]} h6 {[%emt 00:00:02] [%clk
00:00:04]} 36. Qxd2 {[%emt 00:00:01] [%clk 00:00:07]} 1-0

[Site "Europe Echecs"]